[Event "*** Titled Tuesday Blitz"]
[Site "Chess.com"]
[Date "2021.03.02"]
[Round "10"]
[White "FairChess_on_YouTube"]
[Black "Parhamov"]
[Result "0-1"]
[WhiteElo "2954"]
[BlackElo "2906"]
[TimeControl "180+1"]
[EndTime "11:58:37 PST"]
[Termination "Parhamov won by resignation"]

1. d4 {[%clk 0:03:00.9]} 1... Nf6 {[%clk 0:02:59.1]} 2. c4 {[%clk 0:03:00.7]}
2... e6 {[%clk 0:02:58.2]} 3. Nf3 {[%clk 0:02:59.3]} 3... d5 {[%clk 0:02:56.4]}
4. Nc3 {[%clk 0:02:59.5]} 4... Bb4 {[%clk 0:02:52.4]} 5. Qa4+ {[%clk 0:02:59.3]}
5... Nc6 {[%clk 0:02:51.9]} 6. e3 {[%clk 0:02:59.8]} 6... O-O {[%clk 0:02:49.2]}
7. Bd2 {[%clk 0:03:00]} 7... Re8 {[%clk 0:02:47.8]} 8. Qc2 {[%clk 0:02:55.5]}
8... e5 {[%clk 0:02:45.2]} 9. dxe5 {[%clk 0:02:51.1]} 9... Nxe5 {[%clk
0:02:44.7]} 10. Nxe5 {[%clk 0:02:47.7]} 10... Rxe5 {[%clk 0:02:28]} 11. O-O-O
{[%clk 0:02:47.6]} 11... Bf5 {[%clk 0:02:13.1]} 12. Bd3 {[%clk 0:02:32.5]} 12...
Bxd3 {[%clk 0:02:05.8]} 13. Qxd3 {[%clk 0:02:33.4]} 13... c6 {[%clk 0:02:03.9]}
14. Kb1 {[%clk 0:02:26.3]} 14... Qe7 {[%clk 0:01:58.4]} 15. cxd5 {[%clk
0:02:16.1]} 15... Nxd5 {[%clk 0:01:58.1]} 16. f4 {[%clk 0:01:53.6]} 16... Nxc3+
{[%clk 0:01:58]} 17. Bxc3 {[%clk 0:01:53.2]} 17... Rd5 {[%clk 0:01:58.3]} 18.
Qc4 {[%clk 0:01:42]} 18... Bxc3 {[%clk 0:01:58.3]} 19. Rxd5 {[%clk 0:01:41.7]}
19... cxd5 {[%clk 0:01:58.5]} 20. Qxc3 {[%clk 0:01:41.8]} 20... Qe4+ {[%clk
0:01:58.8]} 21. Ka1 {[%clk 0:01:41]} 21... Qxg2 {[%clk 0:01:58.9]} 22. Rc1
{[%clk 0:01:40.9]} 22... h6 {[%clk 0:01:58.5]} 23. Qc7 {[%clk 0:01:29.5]} 23...
Qd2 {[%clk 0:01:49.2]} 24. a3 {[%clk 0:01:24.9]} 24... Qxe3 {[%clk 0:01:47.8]}
25. Rc3 {[%clk 0:01:24.7]} 25... Qb6 {[%clk 0:01:44.4]} 26. Qe7 {[%clk
0:01:22.1]} 26... Qb5 {[%clk 0:01:18.2]} 27. Ka2 {[%clk 0:01:13.4]} 27... Re8
{[%clk 0:01:12]} 28. Qc7 {[%clk 0:01:13.1]} 28... d4 {[%clk 0:01:06.1]} 29. Rb3
{[%clk 0:01:12.8]} 29... Qf5 {[%clk 0:00:54.6]} 30. Rxb7 {[%clk 0:01:07.7]}
30... Qd5+ {[%clk 0:00:22.6]} 31. Rb3 {[%clk 0:01:07.8]} 31... d3 {[%clk
0:00:20.4]} 32. Qb7 {[%clk 0:00:16.5]} 32... Qxb7 {[%clk 0:00:13.6]} 33. Rxb7
{[%clk 0:00:17.4]} 33... Rd8 {[%clk 0:00:13.9]} 34. Rb8 {[%clk 0:00:02.4]} 34...
Rxb8 {[%clk 0:00:13.6]} 0-1

[Event "*** Titled Tuesday Blitz"]
[Site "Chess.com"]
[Date "2021.03.02"]
[Round "10"]
[White "PavelChernomordik"]
[Black "Fraler15"]
[Result "1-0"]
[WhiteElo "2376"]
[BlackElo "2268"]
[TimeControl "180+1"]
[EndTime "11:58:40 PST"]
[Termination "PavelChernomordik won on time"]

1. e4 {[%clk 0:03:00.9]} 1... c5 {[%clk 0:02:59.6]} 2. Nc3 {[%clk 0:03:00.1]}
2... Nc6 {[%clk 0:02:59.2]} 3. Bb5 {[%clk 0:02:59.2]} 3... Nd4 {[%clk
0:02:58.4]} 4. Bc4 {[%clk 0:02:58.5]} 4... e6 {[%clk 0:02:57.4]} 5. Nge2 {[%clk
0:02:58]} 5... Nf6 {[%clk 0:02:57.1]} 6. O-O {[%clk 0:02:57.5]} 6... a6 {[%clk
0:02:56.9]} 7. a4 {[%clk 0:02:56.7]} 7... d5 {[%clk 0:02:56.6]} 8. exd5 {[%clk
0:02:56.1]} 8... exd5 {[%clk 0:02:56.9]} 9. Ba2 {[%clk 0:02:56.3]} 9... Be7
{[%clk 0:02:41.2]} 10. Nf4 {[%clk 0:02:52.3]} 10... Be6 {[%clk 0:02:33.1]} 11.
Nce2 {[%clk 0:02:40.7]} 11... Nxe2+ {[%clk 0:02:16.7]} 12. Qxe2 {[%clk
0:02:39.3]} 12... Bg4 {[%clk 0:02:16.9]} 13. f3 {[%clk 0:02:38]} 13... Bf5
{[%clk 0:02:16.7]} 14. Re1 {[%clk 0:02:35.4]} 14... Qd6 {[%clk 0:01:42.9]} 15.
Nxd5 {[%clk 0:02:20.4]} 15... Nxd5 {[%clk 0:01:43.4]} 16. Bxd5 {[%clk
0:02:19.2]} 16... O-O {[%clk 0:01:42.5]} 17. c4 {[%clk 0:02:15.8]} 17... Bf6
{[%clk 0:01:37.8]} 18. d3 {[%clk 0:02:11.6]} 18... Bd4+ {[%clk 0:01:33.5]} 19.
Kh1 {[%clk 0:02:09.7]} 19... Qd7 {[%clk 0:01:30.7]} 20. Bf4 {[%clk 0:02:02.3]}
20... Rae8 {[%clk 0:01:29.6]} 21. Qd2 {[%clk 0:02:01.4]} 21... Rxe1+ {[%clk
0:01:22.8]} 22. Rxe1 {[%clk 0:01:57.7]} 22... Re8 {[%clk 0:01:22.8]} 23. Be4
{[%clk 0:01:48.1]} 23... Bxe4 {[%clk 0:01:18.3]} 24. fxe4 {[%clk 0:01:43.3]}
24... Qxa4 {[%clk 0:01:17.2]} 25. g3 {[%clk 0:01:37]} 25... Qc6 {[%clk
0:01:14.9]} 26. Be3 {[%clk 0:01:32.1]} 26... Be5 {[%clk 0:00:54.1]} 27. Qf2
{[%clk 0:01:29.1]} 27... b6 {[%clk 0:00:45.3]} 28. Rf1 {[%clk 0:01:28]} 28...
Qd7 {[%clk 0:00:37.1]} 29. b3 {[%clk 0:01:24.8]} 29... g6 {[%clk 0:00:26.8]} 30.
Kg2 {[%clk 0:01:14.2]} 30... Bg7 {[%clk 0:00:26.2]} 31. b4 {[%clk 0:01:06.8]}
31... cxb4 {[%clk 0:00:22.4]} 32. Bxb6 {[%clk 0:01:05.7]} 32... Rb8 {[%clk
0:00:14.4]} 33. c5 {[%clk 0:01:02.8]} 33... Qxd3 {[%clk 0:00:12]} 34. Qxf7+
{[%clk 0:01:01.7]} 34... Kh8 {[%clk 0:00:12.6]} 35. Qd5 {[%clk 0:00:51.9]} 35...
Qc2+ {[%clk 0:00:07.6]} 36. Rf2 {[%clk 0:00:51.4]} 36... Qc3 {[%clk 0:00:04.9]}
37. Bc7 {[%clk 0:00:45.7]} 37... Rc8 {[%clk 0:00:02.4]} 38. Qd7 {[%clk
0:00:44.9]} 38... Ra8 {[%clk 0:00:02.4]} 39. c6 {[%clk 0:00:39.1]} 39... Qd4
{[%clk 0:00:02.2]} 40. Qxd4 {[%clk 0:00:37]} 40... Bxd4 {[%clk 0:00:03.1]} 41.
Rd2 {[%clk 0:00:36.7]} 41... Rc8 {[%clk 0:00:02.8]} 42. Rxd4 {[%clk 0:00:34]}
42... Rxc7 {[%clk 0:00:03.1]} 43. Rd8+ {[%clk 0:00:33.3]} 43... Kg7 {[%clk
0:00:01.5]} 44. Rd7+ {[%clk 0:00:34.2]} 1-0

[Event "*** Titled Tuesday Blitz"]
[Site "Chess.com"]
[Date "2021.03.02"]
[Round "10"]
[White "KetiGrant"]
[Black "KRSilva"]
[Result "1-0"]
[WhiteElo "2355"]
[BlackElo "2231"]
[TimeControl "180+1"]
[EndTime "11:58:40 PST"]
[Termination "KetiGrant won by checkmate"]

1. e4 {[%clk 0:03:00.9]} 1... c5 {[%clk 0:02:52.7]} 2. Nf3 {[%clk 0:03:00.1]}
2... d6 {[%clk 0:02:50.7]} 3. Bb5+ {[%clk 0:02:59.1]} 3... Nd7 {[%clk
0:02:50.2]} 4. O-O {[%clk 0:02:57.9]} 4... a6 {[%clk 0:02:50.2]} 5. Bd3 {[%clk
0:02:57.5]} 5... g6 {[%clk 0:02:49.5]} 6. c3 {[%clk 0:02:57]} 6... Bg7 {[%clk
0:02:50]} 7. Bc2 {[%clk 0:02:57.6]} 7... b5 {[%clk 0:02:50.2]} 8. d4 {[%clk
0:02:56.9]} 8... Bb7 {[%clk 0:02:50.5]} 9. Re1 {[%clk 0:02:55]} 9... Qc7 {[%clk
0:02:49.4]} 10. Nbd2 {[%clk 0:02:53.4]} 10... e5 {[%clk 0:02:48.7]} 11. d5
{[%clk 0:02:51.2]} 11... Ngf6 {[%clk 0:02:48.7]} 12. c4 {[%clk 0:02:47.6]} 12...
h6 {[%clk 0:02:48.1]} 13. b3 {[%clk 0:02:45]} 13... O-O {[%clk 0:02:48.1]} 14.
Bb2 {[%clk 0:02:39.4]} 14... Nh5 {[%clk 0:02:48]} 15. g3 {[%clk 0:02:36.7]}
15... Qd8 {[%clk 0:02:44.1]} 16. Nh4 {[%clk 0:02:34.6]} 16... Kh7 {[%clk
0:02:35]} 17. Nf5 {[%clk 0:02:27]} 17... Bf6 {[%clk 0:02:32.3]} 18. Nxd6 {[%clk
0:02:25.8]} 18... Rb8 {[%clk 0:02:28.1]} 19. Nxb7 {[%clk 0:02:18.6]} 19... Rxb7
{[%clk 0:02:29]} 20. Bd3 {[%clk 0:02:05.4]} 20... Bg7 {[%clk 0:02:27.6]} 21. Be2
{[%clk 0:01:57.5]} 21... Nhf6 {[%clk 0:02:27]} 22. Bf1 {[%clk 0:01:56.3]} 22...
Ne8 {[%clk 0:02:25.8]} 23. Qc2 {[%clk 0:01:53.9]} 23... Nd6 {[%clk 0:02:25.3]}
24. Bg2 {[%clk 0:01:50.5]} 24... Qb8 {[%clk 0:02:08.3]} 25. Bc3 {[%clk
0:01:48.5]} 25... b4 {[%clk 0:01:54.1]} 26. Bb2 {[%clk 0:01:47.8]} 26... Qd8
{[%clk 0:01:53.6]} 27. Rf1 {[%clk 0:01:47.2]} 27... f5 {[%clk 0:01:52.7]} 28.
exf5 {[%clk 0:01:40.8]} 28... gxf5 {[%clk 0:01:53.6]} 29. g4 {[%clk 0:01:38.4]}
29... Kh8 {[%clk 0:01:50.1]} 30. gxf5 {[%clk 0:01:37.3]} 30... Nxf5 {[%clk
0:01:51]} 31. Kh1 {[%clk 0:01:33.2]} 31... Nh4 {[%clk 0:01:48.9]} 32. Be4 {[%clk
0:01:31.6]} 32... Qg5 {[%clk 0:01:44.9]} 33. Rg1 {[%clk 0:01:23]} 33... Qh5
{[%clk 0:01:44.8]} 34. f3 {[%clk 0:01:19.2]} 34... Nf6 {[%clk 0:01:43.9]} 35.
Raf1 {[%clk 0:01:14]} 35... Nxe4 {[%clk 0:01:38.2]} 36. Qxe4 {[%clk 0:01:13.2]}
36... Rbf7 {[%clk 0:01:37]} 37. Rxg7 {[%clk 0:01:06.8]} 37... Kxg7 {[%clk
0:01:32]} 38. Bxe5+ {[%clk 0:01:05.5]} 38... Rf6 {[%clk 0:01:26.8]} 39. Rg1+
{[%clk 0:00:57.7]} 39... Kh8 {[%clk 0:01:26.5]} 40. Qf4 {[%clk 0:00:43.9]} 40...
Nf5 {[%clk 0:00:29.2]} 41. Ne4 {[%clk 0:00:42.5]} 41... Kh7 {[%clk 0:00:20.4]}
42. Nxf6+ {[%clk 0:00:37.3]} 42... Rxf6 {[%clk 0:00:21.3]} 43. Bxf6 {[%clk
0:00:37.1]} 43... Qh3 {[%clk 0:00:16.5]} 44. Qc7+ {[%clk 0:00:32.9]} 44... Ng7
{[%clk 0:00:08.1]} 45. Qxg7# {[%clk 0:00:28.8]} 1-0

[Event "*** Titled Tuesday Blitz"]
[Site "Chess.com"]
[Date "2021.03.02"]
[Round "10"]
[White "ApoIogiA"]
[Black "WiktoriaPOL"]
[Result "1-0"]
[WhiteElo "2194"]
[BlackElo "2028"]
[TimeControl "180+1"]
[EndTime "11:58:40 PST"]
[Termination "ApoIogiA won by checkmate"]

1. d4 {[%clk 0:03:00.9]} 1... d5 {[%clk 0:02:58.6]} 2. c4 {[%clk 0:03:00.4]}
2... e5 {[%clk 0:02:58]} 3. dxe5 {[%clk 0:03:00]} 3... d4 {[%clk 0:02:57.9]} 4.
Nf3 {[%clk 0:03:00.8]} 4... Nc6 {[%clk 0:02:57.1]} 5. g3 {[%clk 0:02:59.2]} 5...
Nge7 {[%clk 0:02:55.3]} 6. Bg2 {[%clk 0:02:59]} 6... Ng6 {[%clk 0:02:55.2]} 7.
O-O {[%clk 0:02:59]} 7... Ngxe5 {[%clk 0:02:50.5]} 8. b3 {[%clk 0:02:45.7]} 8...
Nxf3+ {[%clk 0:02:43.3]} 9. Bxf3 {[%clk 0:02:43.9]} 9... Be7 {[%clk 0:02:41.4]}
10. Bb2 {[%clk 0:02:44]} 10... Bf6 {[%clk 0:02:39.1]} 11. Nd2 {[%clk 0:02:43.7]}
11... O-O {[%clk 0:02:34.7]} 12. Ne4 {[%clk 0:02:41.9]} 12... Be5 {[%clk
0:02:30.2]} 13. Qd2 {[%clk 0:02:35]} 13... f5 {[%clk 0:02:23.5]} 14. Nc5 {[%clk
0:02:32.1]} 14... Kh8 {[%clk 0:02:06.2]} 15. Bxc6 {[%clk 0:02:06.2]} 15... bxc6
{[%clk 0:02:05.1]} 16. e3 {[%clk 0:02:06.8]} 16... f4 {[%clk 0:01:45.6]} 17.
exf4 {[%clk 0:01:42.4]} 17... Bd6 {[%clk 0:00:47.8]} 18. Qxd4 {[%clk 0:01:38.3]}
18... Rf7 {[%clk 0:00:44.5]} 19. Rad1 {[%clk 0:01:23.3]} 19... Bh3 {[%clk
0:00:43.7]} 20. Rfe1 {[%clk 0:01:22.6]} 20... Qc8 {[%clk 0:00:41.2]} 21. Ne4
{[%clk 0:01:09.2]} 21... Qg4 {[%clk 0:00:24.7]} 22. Ng5 {[%clk 0:01:00.7]} 22...
Rd7 {[%clk 0:00:18.5]} 23. Nxh3 {[%clk 0:00:46.7]} 23... Qxh3 {[%clk 0:00:17.5]}
24. c5 {[%clk 0:00:47.3]} 24... Rad8 {[%clk 0:00:11]} 25. cxd6 {[%clk
0:00:46.5]} 25... cxd6 {[%clk 0:00:08.3]} 26. Qxd6 {[%clk 0:00:43.2]} 26... Rxd6
{[%clk 0:00:06.5]} 27. Rxd6 {[%clk 0:00:42.4]} 27... Rg8 {[%clk 0:00:05.9]} 28.
Re7 {[%clk 0:00:36.7]} 28... Qg4 {[%clk 0:00:04.6]} 29. Rdd7 {[%clk 0:00:34.1]}
29... h6 {[%clk 0:00:01.8]} 30. Rxa7 {[%clk 0:00:33]} 30... h5 {[%clk
0:00:01.2]} 31. Bxg7+ {[%clk 0:00:29.7]} 31... Rxg7 {[%clk 0:00:01.8]} 32. Rxg7
{[%clk 0:00:29.1]} 32... Qd1+ {[%clk 0:00:01.6]} 33. Kg2 {[%clk 0:00:28.2]}
33... Qd5+ {[%clk 0:00:02.5]} 34. Kh3 {[%clk 0:00:25.1]} 34... Qf3 {[%clk
0:00:01.9]} 35. Rh7+ {[%clk 0:00:14.9]} 35... Kg8 {[%clk 0:00:01.4]} 36. Rhg7+
{[%clk 0:00:15.4]} 36... Kf8 {[%clk 0:00:01.4]} 37. Kh4 {[%clk 0:00:14.8]} 37...
Ke8 {[%clk 0:00:01.8]} 38. Rg8# {[%clk 0:00:14.4]} 1-0

[Event "*** Titled Tuesday Blitz"]
[Site "Chess.com"]
[Date "2021.03.02"]
[Round "10"]
[White "Galiev_Azat"]
[Black "Ekose"]
[Result "0-1"]
[WhiteElo "2402"]
[BlackElo "2535"]
[TimeControl "180+1"]
[EndTime "11:58:45 PST"]
[Termination "Ekose won on time"]

1. d4 {[%clk 0:02:54.6]} 1... Nf6 {[%clk 0:02:58.7]} 2. Bf4 {[%clk 0:02:54.9]}
2... e6 {[%clk 0:02:52.7]} 3. e3 {[%clk 0:02:55.1]} 3... c5 {[%clk 0:02:52.5]}
4. c3 {[%clk 0:02:54.9]} 4... Nc6 {[%clk 0:02:51.8]} 5. Nd2 {[%clk 0:02:54.9]}
5... d5 {[%clk 0:02:50.8]} 6. Bd3 {[%clk 0:02:54.5]} 6... Bd6 {[%clk 0:02:50.3]}
7. Bg3 {[%clk 0:02:49.3]} 7... Qe7 {[%clk 0:02:41.6]} 8. f4 {[%clk 0:02:48.5]}
8... b6 {[%clk 0:02:24.6]} 9. Ngf3 {[%clk 0:02:46.8]} 9... Bb7 {[%clk
0:02:22.5]} 10. O-O {[%clk 0:02:46.5]} 10... O-O {[%clk 0:02:15.4]} 11. Bh4
{[%clk 0:02:44.9]} 11... Qd8 {[%clk 0:02:08.8]} 12. Ne5 {[%clk 0:02:43.9]} 12...
Be7 {[%clk 0:02:03.7]} 13. Rf3 {[%clk 0:02:34.7]} 13... Nxe5 {[%clk 0:01:51]}
14. fxe5 {[%clk 0:02:32.2]} 14... Ne4 {[%clk 0:01:50.9]} 15. Bxe7 {[%clk
0:02:28.5]} 15... Qxe7 {[%clk 0:01:51.8]} 16. Rh3 {[%clk 0:02:27.4]} 16... f5
{[%clk 0:01:45.2]} 17. exf6 {[%clk 0:02:13.3]} 17... Rxf6 {[%clk 0:01:32.9]} 18.
Bxe4 {[%clk 0:02:05.2]} 18... dxe4 {[%clk 0:01:33.8]} 19. Qg4 {[%clk 0:01:42.6]}
19... Rg6 {[%clk 0:01:32.3]} 20. Qh4 {[%clk 0:01:38.8]} 20... Qxh4 {[%clk
0:01:23.1]} 21. Rxh4 {[%clk 0:01:38.6]} 21... cxd4 {[%clk 0:01:22.8]} 22. cxd4
{[%clk 0:01:18.9]} 22... Rc8 {[%clk 0:01:21.5]} 23. Nxe4 {[%clk 0:01:01]} 23...
Rc2 {[%clk 0:01:17.1]} 24. g3 {[%clk 0:00:56.5]} 24... Rxb2 {[%clk 0:00:49.7]}
25. Rc1 {[%clk 0:00:49.2]} 25... Bxe4 {[%clk 0:00:24]} 26. Rxe4 {[%clk
0:00:47.9]} 26... Rxa2 {[%clk 0:00:22.8]} 27. Rc7 {[%clk 0:00:46.8]} 27... Rf6
{[%clk 0:00:20.3]} 28. Re7 {[%clk 0:00:25.4]} 28... b5 {[%clk 0:00:12.2]} 29.
Rb7 {[%clk 0:00:23.5]} 29... a6 {[%clk 0:00:11.1]} 30. Rb6 {[%clk 0:00:21.9]}
30... h6 {[%clk 0:00:08.7]} 31. Rexe6 {[%clk 0:00:16.2]} 31... Rff2 {[%clk
0:00:08.3]} 32. Rb8+ {[%clk 0:00:12.5]} 32... Kh7 {[%clk 0:00:07.7]} 33. Re4
{[%clk 0:00:06.1]} 33... Rg2+ {[%clk 0:00:07]} 34. Kf1 {[%clk 0:00:05.7]} 34...
Rxh2 {[%clk 0:00:07]} 35. Kg1 {[%clk 0:00:06.1]} 35... Rhg2+ {[%clk 0:00:06.8]}
36. Kf1 {[%clk 0:00:05]} 36... Rgc2 {[%clk 0:00:06.3]} 0-1

[Event "*** Titled Tuesday Blitz"]
[Site "Chess.com"]
[Date "2021.03.02"]
[Round "10"]
[White "Witik"]
[Black "Yaryi_sergey"]
[Result "0-1"]
[WhiteElo "2684"]
[BlackElo "2498"]
[TimeControl "180+1"]
[EndTime "11:58:46 PST"]
[Termination "Yaryi_sergey won by resignation"]

1. e4 {[%clk 0:03:00.9]} 1... c6 {[%clk 0:02:59.3]} 2. d4 {[%clk 0:03:00.4]}
2... Na6 {[%clk 0:02:55.4]} 3. c3 {[%clk 0:02:55.3]} 3... Nc7 {[%clk 0:02:54.9]}
4. Bd3 {[%clk 0:02:54.7]} 4... g6 {[%clk 0:02:54.1]} 5. h4 {[%clk 0:02:49.6]}
5... h5 {[%clk 0:02:53.6]} 6. Nd2 {[%clk 0:02:42.6]} 6... d5 {[%clk 0:02:53.1]}
7. Ne2 {[%clk 0:02:38.1]} 7... Nh6 {[%clk 0:02:52.5]} 8. f3 {[%clk 0:02:32.2]}
8... Bg7 {[%clk 0:02:50]} 9. Nb3 {[%clk 0:02:13.2]} 9... dxe4 {[%clk 0:02:48.2]}
10. Bxe4 {[%clk 0:02:08.2]} 10... Nf5 {[%clk 0:02:47.6]} 11. Bd2 {[%clk
0:01:45.4]} 11... e5 {[%clk 0:02:43.9]} 12. dxe5 {[%clk 0:01:42.9]} 12... Nxh4
{[%clk 0:02:35.9]} 13. f4 {[%clk 0:01:35.4]} 13... f5 {[%clk 0:02:28.6]} 14.
exf6 {[%clk 0:01:28.5]} 14... Bxf6 {[%clk 0:02:27.9]} 15. Qc2 {[%clk 0:01:28.1]}
15... Bf5 {[%clk 0:02:27.1]} 16. O-O-O {[%clk 0:01:25.4]} 16... Qe7 {[%clk
0:02:26.5]} 17. Ng3 {[%clk 0:01:22.7]} 17... O-O-O {[%clk 0:02:02.6]} 18. Bxf5+
{[%clk 0:01:11.6]} 18... Nxf5 {[%clk 0:02:01.3]} 19. Nxf5 {[%clk 0:01:11.4]}
19... gxf5 {[%clk 0:02:02.2]} 20. Qxf5+ {[%clk 0:01:11.7]} 20... Qe6 {[%clk
0:02:02]} 21. Rxh5 {[%clk 0:01:06.8]} 21... Rxh5 {[%clk 0:02:00.4]} 22. Qxh5
{[%clk 0:01:06.3]} 22... Qe4 {[%clk 0:01:56.3]} 23. Qg4+ {[%clk 0:01:01.5]}
23... Kb8 {[%clk 0:01:55.2]} 24. Re1 {[%clk 0:01:01.8]} 24... Qd3 {[%clk
0:01:53.1]} 25. Qe2 {[%clk 0:00:58.4]} 25... Qd5 {[%clk 0:01:50.8]} 26. g4
{[%clk 0:00:57.4]} 26... a5 {[%clk 0:01:49]} 27. Qe4 {[%clk 0:00:44.7]} 27...
Qg8 {[%clk 0:01:41]} 28. g5 {[%clk 0:00:41.8]} 28... Re8 {[%clk 0:01:40.6]} 29.
Qc2 {[%clk 0:00:29.4]} 29... Rxe1+ {[%clk 0:01:31.3]} 30. Bxe1 {[%clk
0:00:29.4]} 30... Be7 {[%clk 0:01:31.5]} 31. Kb1 {[%clk 0:00:24.6]} 31... a4
{[%clk 0:01:30.7]} 32. Nd4 {[%clk 0:00:24.2]} 32... a3 {[%clk 0:01:30.4]} 33. b3
{[%clk 0:00:19.8]} 33... Nd5 {[%clk 0:01:29.8]} 34. Bd2 {[%clk 0:00:19.6]} 34...
Qh8 {[%clk 0:01:26.2]} 35. Qe4 {[%clk 0:00:13.3]} 35... Qh3 {[%clk 0:01:22]} 36.
Kc2 {[%clk 0:00:12.1]} 36... Qf1 {[%clk 0:01:17.5]} 37. g6 {[%clk 0:00:08.8]}
37... Bf6 {[%clk 0:01:12.2]} 38. Qe8+ {[%clk 0:00:05.6]} 38... Ka7 {[%clk
0:01:11.5]} 39. Nxc6+ {[%clk 0:00:05.4]} 39... bxc6 {[%clk 0:01:07.4]} 40. Qxc6
{[%clk 0:00:05.9]} 40... Qf3 {[%clk 0:01:05.3]} 41. Qc5+ {[%clk 0:00:06.1]}
41... Kb7 {[%clk 0:01:04.4]} 42. Qxa3 {[%clk 0:00:06.8]} 42... Qe4+ {[%clk
0:01:01.7]} 43. Kc1 {[%clk 0:00:06.1]} 43... Qh1+ {[%clk 0:01:00.4]} 44. Kb2
{[%clk 0:00:05.6]} 44... Qg2 {[%clk 0:01:00]} 45. Kc1 {[%clk 0:00:04.9]} 45...
Qf1+ {[%clk 0:00:56.7]} 46. Kc2 {[%clk 0:00:05]} 46... Qe2 {[%clk 0:00:54.3]}
47. Qa4 {[%clk 0:00:04.2]} 47... Ne3+ {[%clk 0:00:53.4]} 48. Kc1 {[%clk
0:00:04.5]} 48... Qd1+ {[%clk 0:00:52.8]} 49. Kb2 {[%clk 0:00:05.1]} 49... Qxd2+
{[%clk 0:00:51.9]} 50. Ka3 {[%clk 0:00:05.4]} 50... Nc2+ {[%clk 0:00:51.5]} 51.
Kb2 {[%clk 0:00:05.3]} 51... Nd4+ {[%clk 0:00:49.8]} 52. Ka3 {[%clk 0:00:05]}
52... Be7+ {[%clk 0:00:47.8]} 0-1

[Event "*** Titled Tuesday Blitz"]
[Site "Chess.com"]
[Date "2021.03.02"]
[Round "10"]
[White "CraiggoryC"]
[Black "Das_Virus_2020"]
[Result "0-1"]
[WhiteElo "2258"]
[BlackElo "2436"]
[TimeControl "180+1"]
[EndTime "11:58:47 PST"]
[Termination "Das_Virus_2020 won by resignation"]

1. e4 {[%clk 0:03:00.9]} 1... e6 {[%clk 0:02:59.9]} 2. d4 {[%clk 0:02:59.8]}
2... d5 {[%clk 0:03:00.3]} 3. e5 {[%clk 0:03:00.3]} 3... c5 {[%clk 0:03:00.1]}
4. c3 {[%clk 0:03:00.9]} 4... Nc6 {[%clk 0:03:00.5]} 5. Nf3 {[%clk 0:03:01.3]}
5... Qb6 {[%clk 0:03:00.9]} 6. a3 {[%clk 0:03:01.2]} 6... c4 {[%clk 0:03:01]} 7.
Nbd2 {[%clk 0:03:00.3]} 7... Na5 {[%clk 0:03:01.5]} 8. g3 {[%clk 0:03:00.6]}
8... Bd7 {[%clk 0:03:01.2]} 9. Bg2 {[%clk 0:03:01.1]} 9... h6 {[%clk 0:03:01.7]}
10. h4 {[%clk 0:02:59.8]} 10... Ne7 {[%clk 0:03:02.1]} 11. O-O {[%clk
0:02:59.8]} 11... O-O-O {[%clk 0:03:02.3]} 12. Rb1 {[%clk 0:02:55.7]} 12... Nec6
{[%clk 0:02:59.5]} 13. Re1 {[%clk 0:02:51.8]} 13... Kb8 {[%clk 0:02:59.1]} 14.
b4 {[%clk 0:02:31.6]} 14... cxb3 {[%clk 0:02:58.1]} 15. Nxb3 {[%clk 0:02:31.6]}
15... Nxb3 {[%clk 0:02:58.1]} 16. Rxb3 {[%clk 0:02:30.7]} 16... Qc7 {[%clk
0:02:58.1]} 17. Rb1 {[%clk 0:01:33.3]} 17... Na5 {[%clk 0:02:57.2]} 18. Qd3
{[%clk 0:01:23.9]} 18... Rc8 {[%clk 0:02:54]} 19. Bd2 {[%clk 0:01:22.9]} 19...
Nc4 {[%clk 0:02:52.8]} 20. h5 {[%clk 0:01:16.1]} 20... Be7 {[%clk 0:02:49.8]}
21. Bf4 {[%clk 0:01:03.9]} 21... Ka8 {[%clk 0:02:40.6]} 22. Bf1 {[%clk
0:00:54.6]} 22... Nxa3 {[%clk 0:02:38.1]} 23. Rb3 {[%clk 0:00:47.2]} 23... Nc4
{[%clk 0:02:12.7]} 24. Reb1 {[%clk 0:00:42.9]} 24... Na5 {[%clk 0:02:04.9]} 25.
R3b2 {[%clk 0:00:28.9]} 25... Nc4 {[%clk 0:02:04.6]} 26. Rb3 {[%clk 0:00:27.6]}
26... b6 {[%clk 0:02:04.5]} 27. Ra1 {[%clk 0:00:21.9]} 27... Na5 {[%clk
0:01:39.7]} 28. Rb2 {[%clk 0:00:21.8]} 28... Qxc3 {[%clk 0:01:35.1]} 29. Qxc3
{[%clk 0:00:22.1]} 29... Rxc3 {[%clk 0:01:34.6]} 30. Kg2 {[%clk 0:00:23]} 30...
Rc7 {[%clk 0:01:17.5]} 31. Bd2 {[%clk 0:00:20.9]} 31... Nc4 {[%clk 0:01:05.6]}
32. Bxc4 {[%clk 0:00:20]} 32... Rxc4 {[%clk 0:01:05.2]} 33. Rxb6 {[%clk
0:00:20.1]} 33... Rb8 {[%clk 0:01:00]} 34. Rba6 {[%clk 0:00:17.6]} 34... Rb7
{[%clk 0:00:58]} 35. Be3 {[%clk 0:00:15.3]} 35... Bb5 {[%clk 0:00:53.8]} 36.
R6a2 {[%clk 0:00:15.2]} 36... Kb8 {[%clk 0:00:53.3]} 37. Nd2 {[%clk 0:00:13.6]}
37... Rc3 {[%clk 0:00:50.6]} 38. Rb2 {[%clk 0:00:11.8]} 38... Bd3 {[%clk
0:00:47.4]} 39. Rxb7+ {[%clk 0:00:10.1]} 39... Kxb7 {[%clk 0:00:48.3]} 40. Nf3
{[%clk 0:00:08.4]} 40... Be4 {[%clk 0:00:47.4]} 41. Re1 {[%clk 0:00:08]} 41...
a5 {[%clk 0:00:46.5]} 42. g4 {[%clk 0:00:07.9]} 42... a4 {[%clk 0:00:46.2]} 43.
Kg3 {[%clk 0:00:08.3]} 43... Bxf3 {[%clk 0:00:43.8]} 44. Kxf3 {[%clk 0:00:08.3]}
44... a3 {[%clk 0:00:43.8]} 45. Ra1 {[%clk 0:00:08.1]} 45... Kb6 {[%clk
0:00:41.1]} 46. Ke2 {[%clk 0:00:08.3]} 46... Kb5 {[%clk 0:00:41.1]} 47. Bc1
{[%clk 0:00:06.7]} 47... Kc4 {[%clk 0:00:38.3]} 48. Bd2 {[%clk 0:00:05.8]} 48...
Rc2 {[%clk 0:00:33]} 49. Rc1 {[%clk 0:00:04.7]} 49... Rxc1 {[%clk 0:00:30.6]}
50. Bxc1 {[%clk 0:00:05.6]} 50... Kb3 {[%clk 0:00:26.8]} 51. Kd3 {[%clk
0:00:04.9]} 51... a2 {[%clk 0:00:26.7]} 0-1